bitfinex/quotes_SOLUSD_20250815
["timestamp","ask_amount","ask_price","bid_price","bid_amount"]
[1755273864647,8.86993916,184.89,184.83,9.53993916]
[1755273864856,8.86993916,184.89,184.8,5.41125541]
[1755273865024,8.86993916,184.92,184.87,8.86993916]
[1755273865223,42.2,184.98,184.9,8.86993916]
[1755273865422,8.86993916,184.96,184.91,8.86993916]
[1755273865645,8.86993916,184.97,184.92,8.86993916]
[1755273865853,4.31960916,185.0,184.94,8.86993916]
[1755273866150,0.72,185.06,184.99,8.86993916]
[1755273866319,0.06,185.06,185.04,8.86993916]
[1755273866520,0.06,185.06,185.0,0.67]
[1755273866919,14.11090952,185.05,184.99,14.11090952]
[1755273867315,6.12387441,185.06,184.98,14.11090952]
[1755273867519,0.06,185.06,185.02,14.11090952]
[1755273867722,0.06,185.06,185.05,14.11090952]
[1755273868121,0.06,185.06,185.04,19.51514247]
[1755273868321,0.06,185.06,185.05,14.11090952]
[1755273868532,0.06,185.06,185.04,5.40423295]
[1755273868721,0.06,185.06,184.99,15.10621557]
[1755273868961,14.11090952,185.05,184.99,14.11090952]
[1755273869128,14.11090952,185.04,184.99,14.11090952]
[1755273869526,14.17090952,185.06,185.0,14.78090952]
[1755273869825,14.11090952,185.05,185.0,14.11090952]
[1755273870021,14.11090952,185.05,185.0,20.1862529]
[1755273870219,14.11090952,185.05,185.0,14.11090952]
[1755273870425,0.06,185.06,185.04,14.11090952]
[1755273870750,0.06,185.06,185.01,0.67]
[1755273870931,14.17090952,185.06,185.01,0.67]
[1755273871129,0.06,185.06,185.04,14.11090952]
[1755273871641,0.06,185.06,185.03,14.11090952]
[1755273871841,0.06,185.06,185.02,5.40468175]
[1755273872141,0.06,185.06,185.04,14.11090952]
[1755273872735,0.06,185.06,185.02,6.07468175]
[1755273872932,0.06,185.06,185.04,14.11090952]
[1755273873136,0.06,185.06,185.05,14.11090952]
[1755273873338,0.06,185.06,185.03,0.67]
[1755273873646,0.06,185.06,185.04,0.67]
[1755273873971,0.06,185.06,185.02,0.67]
[1755273874130,0.06,185.06,185.03,14.11090952]
[1755273874326,0.06,185.06,185.04,14.11090952]
[1755273874542,0.06,185.06,185.05,29.75751957]
[1755273874854,0.06,185.08,185.07,14.11090952]
[1755273875032,0.06,185.08,185.06,0.63]
[1755273875218,0.06,185.08,185.07,14.11090952]
[1755273875622,0.06,185.08,185.07,0.63]
[1755273875855,0.06,185.08,185.05,5.40394487]
[1755273876030,0.06,185.08,185.04,0.63]
[1755273876225,0.06,185.08,185.05,14.11090952]
[1755273876753,14.11090952,185.06,185.0,41.52]
[1755273876960,14.11090952,185.07,185.02,14.11090952]
[1755273877130,14.11090952,185.05,185.0,42.15]
[1755273877324,4.15945325,185.04,184.98,14.11090952]
[1755273877528,14.11090952,185.05,184.99,14.11090952]
[1755273877952,8.90392591,185.04,184.99,14.11090952]
[1755273878147,5.40396324,185.05,185.0,14.11090952]
[1755273878354,20.17487276,185.05,184.97,6.03623721]
[1755273878678,6.06396324,185.05,184.97,6.03623721]
[1755273878962,5.40396324,185.05,185.0,14.11090952]
[1755273879264,23.67506566,185.05,185.0,14.11090952]
[1755273879466,20.17487276,185.05,184.97,6.03606263]
[1755273879632,20.17487276,185.05,185.0,14.11090952]
[1755273879834,14.11090952,185.04,184.99,14.11090952]
[1755273880052,18.27097723,185.04,184.97,0.63]
[1755273880332,5.40372442,185.06,185.01,14.11090952]
[1755273880538,0.06,185.08,185.04,14.11090952]
[1755273880751,0.06,185.08,185.07,14.11090952]
[1755273881144,0.06,185.08,185.07,14.74090952]
[1755273881352,0.06,185.08,185.07,14.11090952]
[1755273881957,0.06,185.08,185.07,14.74090952]
[1755273882178,0.06,185.08,185.07,29.84712509]
[1755273883650,0.06,185.08,185.07,35.25048598]
[1755273884858,0.06,185.08,185.07,14.11090952]
[1755273885242,0.06,185.08,185.06,14.11090952]
[1755273885451,0.68,185.07,185.04,14.11090952]
[1755273885643,0.68,185.07,185.03,14.11090952]
[1755273885644,6.08348344,185.07,185.03,14.11090952]
[1755273885866,5.40348344,185.07,185.04,14.11090952]
[1755273886048,0.68,185.06,185.02,55.61090952]
[1755273886238,0.68,185.05,184.99,0.03]
[1755273886564,14.79090952,185.05,185.0,14.11090952]
[1755273886938,0.68,185.05,185.0,14.11090952]
[1755273887349,19.51439296,185.07,185.02,14.11090952]
[1755273887552,3.5037023,185.06,185.05,14.11090952]
[1755273887839,0.06,185.08,185.05,14.11090952]
[1755273888058,0.06,185.08,185.07,14.11090952]
[1755273888344,0.06,185.08,185.07,29.21712509]
[1755273888538,0.06,185.08,185.07,29.84712509]
[1755273889568,0.06,185.08,185.07,35.25048598]
[1755273890962,0.06,185.08,185.07,76.12048598]
[1755273892560,0.06,185.08,185.07,76.75048598]
[1755273892738,0.06,185.08,185.07,77.29082206]
[1755273893766,0.06,185.08,185.07,76.12048598]
[1755273895438,0.06,185.08,185.07,61.01427041]
[1755273895676,0.06,185.08,185.07,46.90336089]
[1755273895873,0.06,185.08,185.07,61.01427041]
[1755273896085,0.06,185.08,185.07,19.51427041]
[1755273896245,0.06,185.08,185.07,55.59090952]
[1755273896571,0.74,185.08,185.07,55.59090952]
[1755273896762,0.74,185.08,185.07,41.48]
[1755273897972,20.25397846,185.08,185.04,41.48]
[1755273898180,20.25397846,185.08,185.0,14.11090952]
[1755273898181,14.11090952,185.05,185.0,14.11090952]
[1755273898382,0.68,185.04,185.01,41.48]
[1755273898873,0.68,185.04,185.01,50.34887978]
[1755273899662,0.68,185.04,185.01,41.48]
[1755273900256,0.06,185.08,185.03,8.86887978]
[1755273900450,0.06,185.08,185.07,23.97509535]
[1755273900658,0.06,185.08,185.07,70.68223661]
[1755273900853,0.06,185.08,185.07,71.31223661]
[1755273901070,0.06,185.08,184.96,14.09602104]
[1755273901071,0.65,185.08,184.87,32.46]
[1755273901269,0.65,185.08,184.65,33.71453776]
[1755273901270,10.0,184.77,184.65,33.71453776]
[1755273901450,10.0,184.77,184.76,2.167024]
[1755273901654,14.09602104,184.77,184.67,0.7]
[1755273901885,0.59,184.8,184.68,48.6]
[1755273902052,13.48868958,184.79,184.69,48.78]
[1755273902373,14.09602104,184.75,184.69,48.78]
[1755273902577,14.09602104,184.73,184.68,39.64]
[1755273902746,7.35400467,184.72,184.68,39.64]
[1755273902947,14.09602104,184.69,184.68,38.94]
[1755273903152,4.07868958,184.69,184.68,38.94]
[1755273903455,4.07868958,184.69,184.68,87.86]
[1755273903456,7.94124483,184.69,184.68,87.86]
[1755273903654,7.35124483,184.69,184.68,87.88]
[1755273903982,7.35124483,184.69,184.68,38.94]
[1755273904173,7.35124483,184.69,184.68,10.6053931]
[1755273904174,62.40011729,184.69,184.68,10.6053931]
[1755273904365,10.0,184.67,184.65,33.71453776]
[1755273904682,33.36931689,184.66,184.65,33.71453776]
[1755273904981,38.28568945,184.66,184.65,33.71453776]
[1755273905282,34.49974058,184.66,184.65,82.79453776]
[1755273905480,129.34316726,184.66,184.65,33.71453776]
[1755273905682,154.80274357,184.66,184.65,33.71453776]
[1755273905991,148.28970964,184.66,184.65,31.00439677]
[1755273906152,10.0,184.6,184.59,38.94]
[1755273906516,59.93490397,184.6,184.59,38.94]
[1755273906647,10.0,184.51,184.49,200.0]
[1755273906850,26.0,184.54,184.49,200.0]
[1755273906851,17.58471062,184.5,184.49,200.0]
[1755273907053,121.62672877,184.5,184.49,200.0]
[1755273907284,97.53070773,184.5,184.49,249.02]
[1755273907448,97.53070773,184.5,184.49,200.0]
[1755273907652,97.53070773,184.5,184.49,214.09602104]
[1755273907872,93.70131783,184.5,184.49,249.7]
[1755273908067,91.78653714,184.5,184.49,263.79602104]
[1755273908276,64.56712942,184.5,184.49,200.7]
[1755273908508,70.2929485,184.5,184.49,197.98985901]
[1755273908671,70.2929485,184.5,184.49,248.46985901]
[1755273908875,70.2929485,184.5,184.49,197.98985901]
[1755273909074,84.38943284,184.5,184.49,197.28985901]
[1755273909282,74.58892909,184.5,184.49,197.28985901]
[1755273909572,70.2934118,184.5,184.49,262.58588005]
[1755273909792,12.72824918,184.5,184.49,262.58588005]
[1755273910002,6.53318652,184.5,184.49,197.98985901]
[1755273910197,6.53318652,184.5,184.49,248.48985901]
[1755273910402,10.0,184.59,184.5,18.9701897]
[1755273910700,10.0,184.65,184.58,14.09602104]
[1755273910920,10.0,184.63,184.59,50.48]
[1755273911073,0.54042369,184.72,184.62,14.09602104]
[1755273911074,10.0,184.7,184.62,14.09602104]
[1755273911277,10.0,184.73,184.67,14.09602104]
[1755273911537,14.09602104,184.7,184.63,0.7]
[1755273911674,14.09602104,184.64,184.59,0.7]
[1755273912004,24.09602104,184.61,184.6,5.41711809]
[1755273912192,24.09602104,184.64,184.6,55.89711809]
[1755273912515,10.0,184.66,184.62,14.09602104]
[1755273912669,10.0,184.68,184.63,0.7]
[1755273912869,10.0,184.71,184.67,14.09602104]
[1755273913075,10.0,184.72,184.69,14.09602104]
[1755273913302,10.0,184.73,184.69,14.09602104]
[1755273913474,10.0,184.74,184.71,14.09602104]
[1755273913676,10.0,184.76,184.72,51.1]
[1755273913906,10.0,184.75,184.73,70.56932694]
[1755273914070,10.0,184.79,184.74,14.79602104]
[1755273914275,14.63644473,184.82,184.73,18.94657066]
[1755273914276,10.0,184.81,184.78,14.09602104]
[1755273914481,10.0,184.81,184.79,50.34]
[1755273914675,10.0,184.81,184.73,18.94657066]
[1755273914676,10.0,184.76,184.73,5.4133059]
[1755273914903,10.0,184.77,184.74,50.34]
[1755273915209,10.0,184.78,184.76,14.09602104]
[1755273915441,10.0,184.83,184.77,14.78602104]
[1755273915713,10.0,184.82,184.78,0.69]
[1755273915882,24.09602104,184.86,184.81,5.41096261]
[1755273916085,10.0,184.82,184.81,5.41096261]
[1755273916398,10.0,184.82,184.81,55.67096261]
[1755273916587,10.0,184.81,184.79,5.41130145]
[1755273916981,10.0,184.8,184.79,5.41130145]
[1755273917212,10.0,184.74,184.71,5.41389204]
[1755273917387,10.0,184.74,184.72,50.18]
[1755273917587,10.0,184.79,184.73,14.78602104]
[1755273917885,24.63644473,184.87,184.79,5.41154824]
[1755273918120,10.0,184.82,184.8,50.18]
[1755273918425,10.0,184.8,184.79,5.41154824]
[1755273918588,10.0,184.8,184.79,55.61154824]
[1755273918927,10.0,184.73,184.68,5.41477149]
[1755273919213,10.0,184.73,184.69,50.83]
[1755273919523,24.09602104,184.73,184.68,5.41477149]
[1755273919695,10.0,184.69,184.68,5.41477149]
[1755273919886,10.0,184.71,184.68,55.51477149]
[1755273920090,10.0,184.71,184.69,14.78602104]
[1755273920417,10.0,184.73,184.7,0.69]
[1755273920594,3.41956519,184.72,184.7,14.09602104]
[1755273920788,10.0,184.76,184.71,64.86602104]
[1755273920994,10.0,184.76,184.73,14.09602104]
[1755273921287,10.0,184.78,184.74,14.09602104]
[1755273921528,10.0,184.77,184.75,50.04]
[1755273921901,14.09602104,184.77,184.75,55.45250758]
[1755273922103,10.0,184.75,184.69,13.53619578]
[1755273922327,24.09602104,184.75,184.7,49.98]
[1755273922533,24.09602104,184.74,184.69,13.53619578]
[1755273922699,10.0,184.71,184.68,5.41477149]
[1755273922906,10.0,184.71,184.7,49.94]
[1755273923219,10.0,184.72,184.7,49.94]
[1755273923424,10.0,184.68,184.67,39.02]
[1755273923601,24.09602104,184.68,184.67,88.92]
[1755273923807,10.0,184.68,184.67,94.33506471]
[1755273924006,24.09602104,184.68,184.67,88.9]
[1755273924328,24.68602104,184.68,184.67,39.02]
[1755273924495,10.0,184.66,184.65,0.03]
[1755273924825,10.0,184.67,184.65,55.28565123]
[1755273925033,24.09602104,184.66,184.65,0.03]
[1755273925321,10.0,184.66,184.65,49.85]
[1755273925503,10.0,184.66,184.65,55.26565123]
[1755273925701,0.54042369,184.76,184.65,70.05167227]
[1755273925913,6.40735162,184.81,184.74,5.41301288]
[1755273926098,6.40735162,184.81,184.75,49.86]
[1755273926099,2.44086294,184.8,184.75,49.86]
[1755273926292,14.09602104,184.82,184.76,14.09602104]
[1755273926501,1.90087981,184.81,184.75,50.55]
[1755273926707,14.096021,184.88,184.75,50.55]
[1755273926708,0.54042369,184.87,184.8,14.09602104]
[1755273926999,0.54042369,184.89,184.82,14.09602104]
[1755273927322,14.09602104,184.88,184.83,49.84]
[1755273927497,14.09602104,184.89,184.84,14.09602104]
[1755273927693,0.4733,184.9,184.84,14.09602104]
[1755273927896,0.4733,184.9,184.85,5.40979172]
[1755273927897,14.56932104,184.9,184.85,5.40979172]
[1755273928131,0.4733,184.9,184.85,33.03029206]
[1755273928426,0.4733,184.9,184.88,14.09602104]
[1755273928627,0.4733,184.9,184.89,49.72]
[1755273929190,0.4733,184.9,184.85,5.40979172]
[1755273929388,14.09602104,184.88,184.86,49.62]
[1755273929596,0.4733,184.9,184.87,14.78602104]
[1755273929900,0.4733,184.9,184.88,5.40891389]
[1755273930222,0.4733,184.9,184.79,27.05734778]
[1755273930223,0.4733,184.9,184.87,5.40920542]
[1755273930396,0.4733,184.9,184.88,49.6]
[1755273930589,0.4733,184.9,184.89,49.6]
[1755273930988,15.10974473,184.9,184.89,49.6]
[1755273931417,0.4733,184.9,184.89,49.6]
[1755273931587,0.4733,184.9,184.89,50.29]
[1755273931790,0.4733,184.9,184.85,14.78602104]
[1755273932019,14.09602104,184.88,184.86,54.96949908]
[1755273932215,14.09602104,184.89,184.86,54.96949908]
[1755273932524,14.56932104,184.9,184.86,54.96949908]
[1755273932691,14.09602104,184.87,184.84,5.40984331]
[1755273933003,14.09602104,184.85,184.76,14.22101404]
[1755273933202,14.09602104,184.81,184.77,49.44]
[1755273933408,3.9764844,184.8,184.77,5.412134]
[1755273933617,3.43606071,184.79,184.78,49.4]
[1755273933816,3.43606071,184.79,184.78,50.09]
[1755273934024,3.43606071,184.79,184.78,69.59786214]
[1755273934596,14.09602104,184.86,184.78,83.12746491]
[1755273934797,3.44232058,184.85,184.84,14.09602104]
[1755273934998,17.53834162,184.85,184.84,49.34]
[1755273935816,3.44232058,184.85,184.84,49.34]
[1755273936135,3.44232058,184.85,184.79,14.78602104]
[1755273936136,15.10621557,184.84,184.77,5.412134]
[1755273936306,26.0,184.8,184.78,49.28]
[1755273936503,14.09602104,184.79,184.78,49.28]
[1755273936698,14.09602104,184.81,184.78,49.28]
[1755273937230,40.09602104,184.84,184.79,0.69]
[1755273937411,26.0,184.85,184.82,14.09602104]
[1755273937736,40.09602104,184.85,184.83,49.24]
[1755273937897,0.54042369,184.89,184.83,54.6502689]
[1755273938098,14.09602104,184.85,184.83,54.4228209]
[1755273938301,0.54042369,184.87,184.83,54.4228209]
[1755273938524,1.92170567,184.86,184.83,55.1128209]
[1755273938826,6.30476027,184.85,184.81,5.41080323]
[1755273939125,1.92129369,184.84,184.82,49.14]
[1755273939323,19.86589959,184.83,184.82,49.14]
[1755273939526,16.01731473,184.83,184.82,49.14]
[1755273939729,16.01731473,184.83,184.82,54.55066984]
[1755273939931,1.92129369,184.83,184.82,54.55066984]
[1755273940128,14.63644473,184.86,184.82,54.55066984]
[1755273940313,14.09602104,184.84,184.82,49.14]
[1755273940639,19.87213332,184.83,184.76,5.41242693]
[1755273940833,14.09602104,184.77,184.75,5.41271841]
[1755273941000,14.09602104,184.77,184.76,49.0]
[1755273941327,19.88139868,184.77,184.76,49.0]
[1755273941926,5.78537764,184.77,184.76,54.41242693]
[1755273942123,19.88139868,184.77,184.76,49.0]
[1755273942304,5.78537764,184.77,184.76,49.0]
[1755273942617,5.78537764,184.77,184.76,55.10242693]
[1755273942935,14.09602104,184.8,184.76,55.10242693]
[1755273943116,26.0,184.8,184.77,0.69]
[1755273943313,26.0,184.8,184.73,0.69]
[1755273943314,14.09602104,184.78,184.73,0.69]
[1755273943518,14.09602104,184.74,184.71,39.0]
[1755273943718,16.0310661,184.73,184.72,48.84]
[1755273944228,16.0310661,184.73,184.71,39.0]
[1755273944433,16.0310661,184.72,184.71,39.0]
[1755273944829,16.0310661,184.72,184.71,87.78]
[1755273945129,1.93504506,184.72,184.67,0.69]
[1755273945431,14.09602104,184.7,184.68,48.74]
[1755273945637,1.93504506,184.69,184.68,48.74]
[1755273945828,1.93504506,184.7,184.68,68.92079253]
[1755273946026,5.7805487,184.72,184.68,68.25079253]
[1755273946331,16.03421724,184.71,184.68,5.41477149]
[1755273946559,1.9381962,184.7,184.69,49.39]
[1755273946717,3.48821337,184.7,184.69,49.39]
[1755273946923,3.48821337,184.7,184.69,63.48602104]
[1755273947636,19.87656974,184.79,184.74,14.09602104]
[1755273947837,1.9380854,184.78,184.76,5.41242693]
[1755273948008,14.09602104,184.8,184.75,49.29]
[1755273948009,1.9380854,184.77,184.75,48.62]
[1755273948211,1.9380854,184.76,184.75,48.62]
[1755273948427,1.9380854,184.76,184.75,54.03271989]
[1755273948622,16.03410644,184.76,184.67,6.08506471]
[1755273948824,12.13490754,184.75,184.68,48.56]
[1755273949035,1.9380854,184.74,184.7,14.09602104]
[1755273949243,1.9380854,184.73,184.7,0.67]
[1755273949418,1.9380854,184.72,184.7,0.67]
[1755273949615,0.06,184.75,184.71,14.76602104]
[1755273949814,1.93840526,184.74,184.73,5.4133059]
[1755273950126,1.93840526,184.74,184.72,48.54]
[1755273950314,1.93840526,184.73,184.72,48.54]
[1755273950513,1.93840526,184.74,184.72,53.95359896]
[1755273950734,1.93840526,184.73,184.72,53.95359896]
[1755273950940,1.93840526,184.73,184.69,14.09602104]
[1755273951145,1.93840526,184.72,184.7,53.83418516]
[1755273951353,14.09602104,184.74,184.7,53.83418516]
[1755273951521,1.94113181,184.73,184.7,53.83418516]
[1755273952954,26.06,184.75,184.71,14.76602104]
[1755273953152,1.94358214,184.74,184.7,5.41418516]
[1755273953361,1.94358214,184.74,184.72,48.26]
[1755273953534,0.06,184.75,184.73,14.76602104]
[1755273953721,0.06,184.75,184.74,14.09602104]
[1755273953917,14.15602104,184.75,184.7,6.08418516]
[1755273954148,14.15602104,184.75,184.71,62.98602104]
[1755273954149,0.06,184.75,184.71,62.98602104]
[1755273954450,0.06,184.75,184.74,14.09602104]
[1755273954640,0.06,184.75,184.74,62.31602104]
[1755273954947,0.06,184.75,184.74,48.89]
[1755273955434,0.06,184.75,184.74,48.22]
[1755273955630,0.06,184.75,184.74,48.89]
[1755273955834,0.06,184.75,184.74,62.98602104]
[1755273956031,0.06,184.75,184.74,68.39903392]
[1755273956448,0.06,184.75,184.74,48.1]
[1755273956650,14.15602104,184.75,184.7,0.67]
[1755273956959,14.15602104,184.75,184.71,48.75]
[1755273957118,0.06,184.75,184.72,48.08]
[1755273957322,0.06,184.75,184.73,0.67]
[1755273957731,14.09602104,184.74,184.69,0.67]
[1755273957928,0.06,184.75,184.7,48.08]
[1755273957929,14.09602104,184.72,184.7,48.08]
[1755273958144,14.28025392,184.72,184.7,48.08]
[1755273958354,0.18423288,184.72,184.7,48.08]
[1755273959457,14.09602104,184.71,184.7,48.08]
[1755273959626,3.51484284,184.71,184.7,48.08]
[1755273959835,3.51484284,184.71,184.7,48.75]
[1755273960145,3.51484284,184.71,184.7,48.08]
[1755273960325,3.51484284,184.71,184.66,0.03]
[1755273960326,17.61086388,184.71,184.66,0.03]
[1755273960531,14.09602104,184.67,184.66,0.03]
[1755273960729,17.61086388,184.67,184.66,47.93]
[1755273960930,17.61086388,184.67,184.66,0.03]
[1755273961161,17.61086388,184.67,184.66,47.91]
[1755273961335,3.51484284,184.67,184.66,62.67602104]
[1755273961538,0.18423288,184.72,184.66,62.67602104]
[1755273961539,3.51484284,184.71,184.66,68.09137899]
[1755273961742,3.51484284,184.7,184.68,14.09602104]
[1755273961942,17.61086388,184.69,184.66,0.03]
[1755273962258,14.09602104,184.67,184.66,0.03]
[1755273962460,3.51484284,184.67,184.66,0.7]
[1755273962837,14.09602104,184.67,184.66,0.03]
[1755273963037,17.61086388,184.67,184.66,0.03]
[1755273963932,33.30707945,184.67,184.66,0.03]
[1755273964139,17.61086388,184.67,184.66,0.03]
[1755273964350,23.61592859,184.67,184.66,0.03]
[1755273964557,42.61286187,184.67,184.66,0.03]
[1755273964732,43.15328556,184.67,184.66,0.03]
[1755273965859,38.72214416,184.67,184.66,0.03]
[1755273966257,39.26256785,184.67,184.66,0.03]
[1755273966972,39.26256785,184.67,184.63,0.03]
[1755273966973,41.10621557,184.64,184.63,0.03]
[1755273967171,15.10621557,184.63,184.62,0.03]
[1755273967344,33.30707945,184.63,184.62,0.03]
[1755273967538,33.30707945,184.63,184.57,47.66]
[1755273967735,14.09602104,184.58,184.57,47.66]
[1755273968244,23.00408197,184.58,184.57,47.66]
[1755273968444,23.00408197,184.58,184.49,197.95985901]
[1755273968640,14.09602104,184.51,184.49,197.95985901]
[1755273968842,14.09602104,184.5,184.49,197.28985901]
[1755273969371,23.91444505,184.5,184.49,197.28985901]
[1755273969537,43.09228715,184.5,184.49,141.15484085]
[1755273969734,43.09228715,184.5,184.41,50.0]
[1755273969959,29.20223661,184.42,184.41,50.0]
[1755273970165,38.10626851,184.42,184.41,50.0]
[1755273970361,34.62464198,184.42,184.41,50.0]
[1755273970565,14.09602104,184.42,184.41,50.0]
[1755273970740,40.09602104,184.42,184.41,50.0]
[1755273970941,32.4,184.42,184.41,50.0]
[1755273971158,46.49602104,184.42,184.41,50.0]
[1755273971359,46.49602104,184.42,184.33,0.58794105]
[1755273971360,41.10621557,184.34,184.33,0.58794105]
[1755273971541,55.20223661,184.34,184.33,0.58794105]
[1755273972386,41.10621557,184.3,184.2,0.67]
[1755273972571,55.20223661,184.3,184.2,0.67]
[1755273972770,58.74322022,184.3,184.29,73.54348969]
[1755273973072,58.74322022,184.3,184.29,17.47502663]
[1755273973240,26.0,184.26,184.16,50.0]
[1755273973448,14.09602104,184.2,184.16,50.67]
[1755273973657,0.54042369,184.25,184.16,50.67]
[1755273973658,26.0,184.25,184.17,0.67]
[1755273973839,14.09602104,184.2,184.17,48.91]
[1755273974061,14.09602104,184.21,184.18,0.67]
[1755273974254,14.09602104,184.21,184.16,47.28394391]
[1755273974255,15.10621557,184.19,184.16,47.28394391]
[1755273974450,29.20223661,184.17,184.16,47.28394391]
[1755273974865,34.61571328,184.17,184.16,19.95004008]
[1755273975050,48.80173432,184.17,184.16,19.95004008]
[1755273975253,34.70571328,184.17,184.16,19.95004008]
[1755273975459,15.10621557,184.13,184.06,0.72]
[1755273975659,15.10621557,184.11,184.0,26.26495]
[1755273975881,0.54042369,184.1,184.04,48.6]
[1755273976183,5.97177434,184.12,184.06,0.72]
[1755273976476,26.0,184.09,184.04,48.6]
[1755273976678,41.10621557,184.09,184.05,0.72]
[1755273976853,0.54042369,184.16,184.08,220.248387]
[1755273977051,0.54042369,184.16,184.09,49.28]
[1755273977359,5.36648929,184.18,184.09,0.72]
[1755273977573,0.54042369,184.17,184.09,0.72]
[1755273977774,0.54042369,184.17,184.08,200.0]
[1755273978083,15.10621557,184.15,184.09,48.92]
[1755273978382,14.09602104,184.11,184.09,49.47679046]
[1755273978672,0.54042369,184.14,184.1,0.72]
[1755273978888,0.54042369,184.14,184.09,48.75679046]
[1755273978889,0.54042369,184.14,184.11,49.62]
[1755273979110,0.54042369,184.17,184.11,63.71602104]
[1755273979256,14.09602104,184.12,184.09,0.72]
[1755273979454,0.54042369,184.11,184.1,48.92]
[1755273979750,26.0,184.14,184.1,49.64]
[1755273979751,0.54042369,184.13,184.1,49.64]
[1755273980254,0.54042369,184.13,184.11,0.72]
[1755273980574,0.54042369,184.13,184.09,19.52813772]
[1755273980575,14.09602104,184.14,184.12,0.72]
[1755273980782,0.54042369,184.15,184.13,49.58]
[1755273981090,14.09602104,184.16,184.14,0.72]
[1755273981253,0.54042369,184.2,184.15,49.56]
[1755273981454,14.63644473,184.2,184.16,49.56]
[1755273981777,15.10621557,184.16,184.1,0.72]
[1755273981974,15.10621557,184.16,184.08,200.0]
[1755273981975,26.0,184.09,184.08,200.0]
[1755273982178,31.43212559,184.09,184.08,200.0]
[1755273982387,26.0,184.09,184.08,200.0]
[1755273982557,0.54042369,184.09,184.08,200.0]
[1755273982752,16.329641,184.1,184.08,200.72]
[1755273982962,14.09602104,184.09,184.08,200.0]
[1755273983368,14.63644473,184.1,184.08,249.54]
[1755273983602,0.54042369,184.18,184.09,0.72]
[1755273983896,147.99602104,184.13,184.09,0.72]
[1755273984095,133.9,184.13,184.09,0.72]
[1755273984394,0.54042369,184.12,184.1,48.78]
[1755273984571,0.54042369,184.12,184.11,48.78]
[1755273984765,14.63644473,184.12,184.11,48.76]
[1755273985675,40.63644473,184.12,184.08,200.72]
[1755273985867,40.09602104,184.09,184.08,200.0]
[1755273986192,40.09602104,184.09,184.08,200.72]
[1755273986193,14.09602104,184.09,184.08,200.72]
[1755273986399,14.63644473,184.09,184.08,248.72]
[1755273986570,20.06857032,184.09,184.08,248.72]
[1755273986769,26.0,184.12,184.08,248.72]
[1755273987000,14.09602104,184.09,184.08,248.72]
[1755273987190,0.54042369,184.11,184.08,200.0]
[1755273987381,14.09602104,184.09,184.08,200.0]
[1755273987578,14.09602104,184.09,184.08,248.66]
[1755273987783,14.09602104,184.09,184.08,200.0]
[1755273987986,14.09602104,184.09,184.08,248.62]
[1755273988171,15.10621557,184.1,184.08,248.62]
[1755273988377,5.97254928,184.09,184.08,248.62]
[1755273988599,20.06857032,184.09,184.08,248.62]
[1755273989003,5.97254928,184.09,184.08,248.62]
[1755273989182,5.97254928,184.09,184.08,248.3388]
[1755273989183,0.54042369,184.09,184.08,248.3388]
[1755273989382,14.09602104,184.1,184.08,249.0588]
[1755273989582,14.63644473,184.11,184.09,49.24]
[1755273989784,14.09602104,184.1,184.08,199.7188]
[1755273990081,0.54042369,184.11,184.08,199.7188]
[1755273990270,0.54042369,184.11,184.09,0.72]
[1755273990482,0.54042369,184.11,184.09,49.22]
[1755273990483,14.63644473,184.11,184.09,49.22]
[1755273990673,16.327863,184.12,184.1,0.72]
[1755273990872,16.327863,184.12,184.11,49.2]
[1755273991275,0.54042369,184.14,184.11,0.72]
[1755273991612,16.324309,184.16,184.13,14.09602104]
[1755273991775,16.324309,184.16,184.15,14.09602104]
[1755273991979,5.58793007,184.21,184.15,62.55602104]
[1755273992191,5.58793007,184.21,184.17,14.09602104]